[Event "African Individual Chess-ch Women 2024"]
[Site "Accra"]
[Date "2024.03.17"]
[Round "5.7"]
[White "Marochkina, Nadezhda Valerevna"]
[Black "Haile, Lidet Abate"]
[Result "1-0"]
[ECO "D53"]
[WhiteElo "1819"]
[BlackElo "1798"]
[Annotator "NA RC"]
[PlyCount "135"]
[EventDate "2024.03.13"]
[EventCountry "GHA"]
[SourceTitle "playchess.com"]
[Source "ChessBase"]
[SourceQuality "1"]
[TimeControl "5400+30"]

1. d4 {[%emt 0:01:32]} d5 {[%emt 0:00:07]} 2. c4 {[%emt 0:00:07]} e6 {[%emt 0:00:14]} 3. Nf3 {[%emt 0:00:23]} Nf6 {[%emt 0:00:43]} 4. Bg5 {[%emt 0:00:13]} Be7 {[%emt 0:00:14]} 5. e3 {[%emt 0:00:09]} dxc4 {[%emt 0:00:48]} 6. Bxc4 {[%emt 0:00:05]} Nbd7 {[%emt 0:00:37]} 7. Nc3 {[%emt 0:00:20]} a6 {[%emt 0:00:39]} 8. a4 {[%emt 0:00:19]} O-O {[%emt 0:00:27]} 9. O-O {[%emt 0:00:31]} b6 {[%emt 0:01:56]} 10. Ne5 {[%emt 0:04:43]} Nxe5 {[%emt 0:06:33]} 11. dxe5 {[%emt 0:01:30]} Nd7 {[%emt 0:01:43]} 12. Bf4 {[%emt 0:05:24]} Bb7 {[%emt 0:02:49]} 13. Qg4 {[%emt 0:03:22]} Re8 {[%emt 0:02:21]} 14. Rad1 {[%emt 0:01:41]} c5 {[%emt 0:01:37]} 15. Bxe6 {[%emt 0:03:43]} fxe6 {[%emt 0:03:50]} 16. Qxe6+ {[%emt 0:00:10]} Kh8 {[%emt 0:00:29]} 17. Qxd7 {[%emt 0:02:11]} Qxd7 {[%emt 0:03:38]} 18. Rxd7 {[%emt 0:00:07]} Bc6 {[%emt 0:00:44]} 19. Rd2 {[%emt 0:01:50]} b5 {[%emt 0:02:01]} 20. axb5 {[%emt 0:01:01]} axb5 {[%emt 0:00:03]} 21. Nd5 {[%emt 0:01:19]} Red8 {[%emt 0:00:39]} 22. e4 {[%emt 0:01:40]} Rd7 {[%emt 0:06:33]} 23. e6 {[%emt 0:00:59]} Rb7 {[%emt 0:01:16]} 24. Rfd1 {[%emt 0:03:02]} h6 {[%emt 0:01:54]} 25. f3 {[%emt 0:00:59]} c4 {[%emt 0:01:35]} 26. Nxe7 {[%emt 0:01:48]} Rxe7 {[%emt 0:00:27]} 27. Rd6 {[%emt 0:00:13]} Rc8 {[%emt 0:00:33]} 28. Bg3 {[%emt 0:01:40]} b4 {[%emt 0:01:53]} 29. Bh4 {[%emt 0:02:24]} Ree8 {[%emt 0:00:34]} 30. e7 {[%emt 0:00:32]} c3 {[%emt 0:00:58]} 31. bxc3 {[%emt 0:00:33]} bxc3 {[%emt 0:00:02]} 32. Rc1 {[%emt 0:02:21]} Ba4 {[%emt 0:02:19]} 33. Rd4 {[%emt 0:01:27]} Bb5 {[%emt 0:03:02]} 34. Rc2 {[%emt 0:04:25]} Kg8 {[%emt 0:03:11]} 35. Be1 {[%emt 0:01:58]} Rxe7 {[%emt 0:00:25]} 36. Rxc3 {[%emt 0:00:12]} Rxc3 {[%emt 0:00:12]} 37. Bxc3 {[%emt 0:00:25]} Rc7 {[%emt 0:00:10]} 38. Rd8+ {[%emt 0:00:42]} Kf7 {[%emt 0:00:08]} 39. Be5 {[%emt 0:00:26]} Rc1+ {[%emt 0:00:16]} 40. Kf2 {[%emt 0:00:10]} Rc2+ {[%emt 0:01:21]} 41. Ke3 {[%emt 0:02:48]} Rxg2 {[%emt 0:00:38]} 42. Rb8 {[%emt 0:00:56]} Bd7 {[%emt 0:04:56]} 43. Rb7 {[%emt 0:02:26]} Ke6 {[%emt 0:02:18]} 44. Bg3 {[%emt 0:00:50]} g6 {[%emt 0:03:18]} 45. f4 {[%emt 0:00:42]} Be8 {[%emt 0:02:42]} 46. Rb6+ {[%emt 0:02:01]} Kd7 {[%emt 0:01:46]} 47. f5 {[%emt 0:01:41]} gxf5 {[%emt 0:02:17]} 48. exf5 {[%emt 0:00:12]} h5 {[%emt 0:01:06]} 49. Rb7+ {[%emt 0:00:28]} Kc8 {[%emt 0:03:10]} 50. Re7 {[%emt 0:01:18]} Bb5 {[%emt 0:04:56]} 51. Rh7 {[%emt 0:01:35]} Re2+ {[%emt 0:02:59]} 52. Kf4 {[%emt 0:01:26]} Be8 {[%emt 0:07:24]} 53. f6 {[%emt 0:01:29]} Bg6 {[%emt 0:01:10]} 54. f7 {[%emt 0:05:56]} Bxf7 {[%emt 0:00:44]} 55. Rxf7 {[%emt 0:00:06]} h4 {[%emt 0:00:13]} 56. Kf3 {[%emt 0:00:10]} Rc2 {[%emt 0:01:38]} 57. Bf4 {[%emt 0:00:11]} Kd8 {[%emt 0:02:17]} 58. Kg4 {[%emt 0:00:13]} Ke8 {[%emt 0:00:13]} 59. Rh7 {[%emt 0:00:22]} Kf8 {[%emt 0:00:33]} 60. Kxh4 {[%emt 0:00:14]} Kg8 {[%emt 0:01:00]} 61. Ra7 {[%emt 0:00:10]} Rc4 {[%emt 0:00:17]} 62. Kg4 {[%emt 0:00:20]} Rb4 {[%emt 0:00:56]} 63. h4 {[%emt 0:00:09]} Kh8 {[%emt 0:02:05]} 64. h5 {[%emt 0:00:11]} Kg8 {[%emt 0:00:21]} 65. h6 {[%emt 0:00:15]} Kh8 {[%emt 0:03:00]} 66. Kg5 {[%emt 0:00:19]} Rb5+ {[%emt 0:00:17]} 67. Kg6 {[%emt 0:00:13]} Rb6+ {[%emt 0:00:10]} 68. Kh5 {[%emt 0:00:11]} 1-0

[Event "African Individual Chess-ch Women 2024"]
[Site "Accra"]
[Date "2024.03.17"]
[Round "6.1"]
[White "February, Jesse Nikki"]
[Black "Junior, Ednasia"]
[Result "1-0"]
[ECO "B42"]
[WhiteElo "1920"]
[BlackElo "1915"]
[Annotator "RC"]
[PlyCount "113"]
[EventDate "2024.03.13"]
[EventCountry "GHA"]
[SourceTitle "playchess.com"]
[Source "ChessBase"]
[SourceQuality "1"]
[TimeControl "5400+30"]

1. e4 {[%emt 1:31:00]} c5 {[%emt 1:31:00]} 2. Nf3 {[%emt 0:00:30]} e6 {[%emt 0:00:30]} 3. d4 {[%emt 0:00:30]} cxd4 {[%emt 0:00:30]} 4. Nxd4 {[%emt 0:00:30]} a6 {[%emt 0:00:30]} 5. Bd3 {[%emt 0:00:30]} Nf6 {[%emt 0:00:30]} 6. Qe2 {[%emt 0:00:30]} Qc7 {[%emt 0:00:30]} 7. c4 {[%emt 0:00:30]} d6 {[%emt 0:00:30]} 8. Nc3 {[%emt 0:00:30]} Be7 {[%emt 0:00:30]} 9. Be3 {[%emt 0:00:30]} Nbd7 {[%emt 0:00:30]} 10. f4 {[%emt 0:00:30]} Nc5 {[%emt 0:00:30]} 11. Bc2 {[%emt 0:00:30]} b6 {[%emt 0:00:30]} 12. O-O {[%emt 0:00:30]} Bb7 {[%emt 0:00:30]} 13. Bd2 {[%emt 0:00:30]} O-O {[%emt 0:00:30]} 14. Rae1 {[%emt 0:00:30]} Rfd8 {[%emt 0:00:30]} 15. g4 {[%emt 0:00:30]} Bf8 {[%emt 0:00:30]} 16. g5 {[%emt 0:00:30]} Ne8 {[%emt 0:00:30]} 17. Rf3 {[%emt 0:00:30]} g6 {[%emt 0:00:30]} 18. Rh3 {[%emt 0:00:30]} e5 {[%emt 0:00:30]} 19. Nf5 {[%emt 0:00:30]} Ne6 {[%emt 0:00:30]} 20. Nd5 {[%emt 0:00:30]} Bxd5 {[%emt 0:00:30]} 21. exd5 {[%emt 0:00:30]} Nxf4 {[%emt 0:00:30]} 22. Bxf4 {[%emt 0:00:30]} exf4 {[%emt 0:00:30]} 23. Qe4 {[%emt 0:00:30]} Rac8 {[%emt 0:00:30]} 24. b3 {[%emt 0:00:30]} f6 {[%emt 0:00:30]} 25. Nd4 {[%emt 0:00:30]} fxg5 {[%emt 0:00:30]} 26. Qe6+ {[%emt 0:00:30]} Qf7 {[%emt 0:00:30]} 27. Bxg6 {[%emt 0:00:30]} Qxe6 {[%emt 0:00:30]} 28. Bxh7+ {[%emt 0:00:30]} Kf7 {[%emt 0:00:30]} 29. dxe6+ {[%emt 0:00:30]} Kf6 {[%emt 0:00:30]} 30. Nf5 {[%emt 0:00:30]} Rc7 {[%emt 0:00:30]} 31. e7 {[%emt 0:00:30]} Bxe7 {[%emt 0:00:30]} 32. Rh6+ {[%emt 0:00:30]} Kf7 {[%emt 0:00:30]} 33. Rhe6 {[%emt 0:00:30]} Bf6 {[%emt 0:00:30]} 34. Rxe8 {[%emt 0:00:30]} Rxe8 {[%emt 0:00:30]} 35. Nxd6+ {[%emt 0:00:30]} Kf8 {[%emt 0:00:30]} 36. Rxe8+ {[%emt 0:00:30]} Kg7 {[%emt 0:00:30]} 37. Bc2 {[%emt 0:00:30]} Rd7 {[%emt 0:00:30]} 38. Ne4 {[%emt 0:00:30]} Bd4+ {[%emt 0:00:30]} 39. Kg2 {[%emt 0:00:30]} g4 {[%emt 0:00:30]} 40. Re6 {[%emt 0:00:30]} Be3 {[%emt 0:00:30]} 41. Nd6 {[%emt 0:00:30]} Bc5 {[%emt 0:00:30]} 42. Rg6+ {[%emt 0:00:30]} Kf8 {[%emt 0:00:30]} 43. Ne4 {[%emt 0:00:30]} f3+ {[%emt 0:00:30]} 44. Kf1 {[%emt 0:00:30]} Rh7 {[%emt 0:00:30]} 45. Nxc5 {[%emt 0:00:30]} Rxh2 {[%emt 0:00:30]} 46. Rxg4 {[%emt 0:00:30]} bxc5 {[%emt 0:00:30]} 47. Bd1 {[%emt 0:00:30]} Rxa2 {[%emt 0:00:30]} 48. Rf4+ {[%emt 0:00:30]} Ke7 {[%emt 0:00:30]} 49. Rxf3 {[%emt 0:00:30]} Kd6 {[%emt 0:00:30]} 50. Rf2 {[%emt 0:00:30]} Ra1 {[%emt 0:00:30]} 51. Ke1 {[%emt 0:00:30]} Ke5 {[%emt 0:00:30]} 52. Rd2 {[%emt 0:00:30]} Ke4 {[%emt 0:00:30]} 53. Ke2 {[%emt 0:00:30]} Ra5 {[%emt 0:00:30]} 54. Bc2+ {[%emt 0:00:30]} Ke5 {[%emt 0:00:30]} 55. Kd3 {[%emt 0:00:30]} Ra1 {[%emt 0:00:30]} 56. Kc3 {[%emt 0:00:30]} Rh1 {[%emt 0:00:30]} 57. Rd5+ {[%emt 0:00:30]} 1-0

[Event "African Individual Chess-ch Women 2024"]
[Site "Accra"]
[Date "2024.03.17"]
[Round "6.2"]
[White "Vilhete, Vania Fausto Da T."]
[Black "Wafa, Shahenda"]
[Result "0-1"]
[ECO "E73"]
[WhiteElo "1829"]
[BlackElo "2083"]
[Annotator "RC"]
[PlyCount "116"]
[EventDate "2024.03.13"]
[EventCountry "GHA"]
[SourceTitle "playchess.com"]
[Source "ChessBase"]
[SourceQuality "1"]
[TimeControl "5400+30"]

1. d4 {[%emt 0:00:02]} Nf6 {[%emt 0:00:17]} 2. c4 {[%emt 0:00:07]} g6 {[%emt 0:00:09]} 3. Nc3 {[%emt 0:00:18]} Bg7 {[%emt 0:00:09]} 4. e4 {[%emt 0:00:06]} d6 {[%emt 0:00:07]} 5. Be2 {[%emt 0:00:05]} Nbd7 {[%emt 0:00:27]} 6. Bg5 {[%emt 0:00:30]} h6 {[%emt 0:01:32]} 7. Be3 {[%emt 0:00:22]} e5 {[%emt 0:00:48]} 8. Nf3 {[%emt 0:01:30]} Ng4 {[%emt 0:04:53]} 9. Bc1 {[%emt 0:03:00]} O-O {[%emt 0:01:41]} 10. O-O {[%emt 0:00:54]} Re8 {[%emt 0:06:37]} 11. h3 {[%emt 0:05:42]} Ngf6 {[%emt 0:00:16]} 12. d5 {[%emt 0:00:23]} Nc5 {[%emt 0:01:00]} 13. Nd2 {[%emt 0:01:25]} a5 {[%emt 0:00:48]} 14. Qc2 {[%emt 0:02:47]} b6 {[%emt 0:06:15]} 15. Nb3 {[%emt 0:03:17]} Nh7 {[%emt 0:05:00]} 16. Nxc5 {[%emt 0:06:40]} bxc5 {[%emt 0:00:06]} 17. f4 {[%emt 0:02:53]} exf4 {[%emt 0:01:51]} 18. Bxf4 {[%emt 0:01:35]} Qh4 {[%emt 0:07:34]} 19. Bd3 {[%emt 0:04:02]} Ng5 {[%emt 0:04:29]} 20. Bxg5 {[%emt 0:01:09]} hxg5 {[%emt 0:02:55]} 21. Nb5 {[%emt 0:04:20]} Bd7 {[%emt 0:08:18]} 22. Rf3 {[%emt 0:13:31]} g4 {[%emt 0:05:52]} 23. hxg4 {[%emt 0:00:54]} Bxb5 {[%emt 0:03:41]} 24. Rh3 {[%emt 0:03:26]} Bd4+ {[%emt 0:00:20]} 25. Kh1 {[%emt 0:00:14]} Qxg4 {[%emt 0:00:39]} 26. cxb5 {[%emt 0:00:37]} Kg7 {[%emt 0:00:32]} 27. Qd1 {[%emt 0:06:00]} Qxd1+ {[%emt 0:03:19]} 28. Rxd1 {[%emt 0:00:10]} Bxb2 {[%emt 0:00:06]} 29. a4 {[%emt 0:02:26]} Bd4 {[%emt 0:01:04]} 30. Kh2 {[%emt 0:00:28]} Be5+ {[%emt 0:01:26]} 31. g3 {[%emt 0:01:03]} Rh8 {[%emt 0:01:07]} 32. Rxh8 {[%emt 0:00:17]} Rxh8+ {[%emt 0:00:03]} 33. Kg2 {[%emt 0:00:07]} Rh5 {[%emt 0:00:16]} 34. Rf1 {[%emt 0:01:00]} Bd4 {[%emt 0:01:51]} 35. Rf3 {[%emt 0:06:39]} Re5 {[%emt 0:01:37]} 36. Rf4 {[%emt 0:03:42]} Be3 {[%emt 0:01:05]} 37. Rf1 {[%emt 0:00:46]} c4 {[%emt 0:02:56]} 38. Kf3 {[%emt 0:01:14]} cxd3 {[%emt 0:00:23]} 39. Kxe3 {[%emt 0:00:41]} f5 {[%emt 0:00:34]} 40. Kxd3 {[%emt 0:00:16]} Rxe4 {[%emt 0:00:41]} 41. Rc1 {[%emt 0:02:05]} Rxa4 {[%emt 0:01:21]} 42. Rxc7+ {[%emt 0:00:11]} Kf6 {[%emt 0:00:11]} 43. b6 {[%emt 0:00:24]} Rb4 {[%emt 0:00:43]} 44. b7 {[%emt 0:00:22]} Ke5 {[%emt 0:00:27]} 45. Kc3 {[%emt 0:00:57]} Kxd5 {[%emt 0:00:55]} 46. Rg7 {[%emt 0:00:20]} Ke5 {[%emt 0:01:40]} 47. Rxg6 {[%emt 0:01:58]} Rxb7 {[%emt 0:00:08]} 48. g4 {[%emt 0:01:01]} Rf7 {[%emt 0:06:22]} 49. gxf5 {[%emt 0:00:57]} Rxf5 {[%emt 0:00:08]} 50. Kd3 {[%emt 0:01:12]} Rf3+ {[%emt 0:00:45]} 51. Kd2 {[%emt 0:00:11]} a4 {[%emt 0:00:51]} 52. Rg5+ {[%emt 0:00:59]} Ke4 {[%emt 0:01:54]} 53. Ra5 {[%emt 0:01:07]} a3 {[%emt 0:00:15]} 54. Ra4+ {[%emt 0:00:18]} Ke5 {[%emt 0:00:10]} 55. Ke2 {[%emt 0:00:54]} Rh3 {[%emt 0:00:14]} 56. Ra8 {[%emt 0:00:26]} d5 {[%emt 0:00:18]} 57. Re8+ {[%emt 0:00:15]} Kd4 {[%emt 0:00:09]} 58. Ra8 {[%emt 0:00:06]} Rh2+ {[%emt 0:01:17]} 0-1

[Event "African Individual Chess-ch Women 2024"]
[Site "Accra"]
[Date "2024.03.17"]
[Round "6.3"]
[White "Nassr, Lina"]
[Black "Ofowino, Toritsemuwa"]
[Result "1-0"]
[ECO "B13"]
[WhiteElo "2080"]
[BlackElo "1950"]
[Annotator "RC"]
[PlyCount "37"]
[EventDate "2024.03.13"]
[EventCountry "GHA"]
[SourceTitle "playchess.com"]
[Source "ChessBase"]
[SourceQuality "1"]
[TimeControl "5400+30"]

1. d4 {[%emt 0:00:03]} d5 {[%emt 0:00:30]} 2. Nf3 {[%emt 0:00:10]} Nf6 {[%emt 0:00:19]} 3. e3 {[%emt 0:00:15]} c5 {[%emt 0:00:35]} 4. Be2 {[%emt 0:01:33]} Nc6 {[%emt 0:01:26]} 5. O-O {[%emt 0:01:02]} cxd4 {[%emt 0:00:14]} 6. exd4 {[%emt 0:00:20]} Bg4 {[%emt 0:02:50]} 7. h3 {[%emt 0:01:26]} Bh5 {[%emt 0:00:11]} 8. c3 {[%emt 0:01:19]} e6 {[%emt 0:00:18]} 9. Nbd2 {[%emt 0:02:09]} Bd6 {[%emt 0:06:01]} 10. Ne5 {[%emt 0:05:01]} Bxe2 {[%emt 0:01:21]} 11. Qxe2 {[%emt 0:00:08]} Qc7 {[%emt 0:05:05]} 12. Re1 {[%emt 0:02:16]} O-O {[%emt 0:00:16]} 13. Nf1 {[%emt 0:06:15]} a6 {[%emt 0:09:00]} 14. Ng3 {[%emt 0:06:23]} b5 {[%emt 0:01:01]} 15. Bg5 {[%emt 0:10:09]} Nd7 {[%emt 0:09:32]} 16. Nxd7 {[%emt 0:06:41]} Qxd7 {[%emt 0:00:49]} 17. Nh5 {[%emt 0:04:18]} Kh8 {[%emt 0:06:18]} 18. Nf6 {[%emt 0:10:13]} Qd8 {[%emt 0:01:31]} 19. Nxh7 {[%emt 0:03:11]} 1-0

[Event "African Individual Chess-ch Women 2024"]
[Site "Accra"]
[Date "2024.03.17"]
[Round "6.4"]
[White "Laubscher, Anzel"]
[Black "QUICKPEN, Deborah Ebimobo-ere"]
[Result "0-1"]
[ECO "B20"]
[WhiteElo "1820"]
[BlackElo "1945"]
[Annotator "RC"]
[PlyCount "78"]
[EventDate "2024.03.13"]
[EventCountry "GHA"]
[SourceTitle "playchess.com"]
[Source "ChessBase"]
[SourceQuality "1"]
[TimeControl "5400+30"]

1. e4 {[%emt 0:00:17]} c5 {[%emt 0:00:02]} 2. c4 {[%emt 0:00:02]} Nc6 {[%emt 0:00:02]} 3. g3 {[%emt 0:00:16]} g6 {[%emt 0:00:16]} 4. Bg2 {[%emt 0:00:16]} Bg7 {[%emt 0:00:26]} 5. Ne2 {[%emt 0:00:25]} e5 {[%emt 0:00:45]} 6. O-O {[%emt 0:00:50]} d6 {[%emt 0:01:00]} 7. Nbc3 {[%emt 0:01:13]} Nge7 {[%emt 0:00:43]} 8. Nd5 {[%emt 0:03:55]} O-O {[%emt 0:01:44]} 9. Nec3 {[%emt 0:03:32]} a6 {[%emt 0:01:40]} 10. d3 {[%emt 0:01:32]} h6 {[%emt 0:01:44]} 11. Be3 {[%emt 0:04:08]} Rb8 {[%emt 0:02:44]} 12. f4 {[%emt 0:07:07]} exf4 {[%emt 0:05:41]} 13. gxf4 {[%emt 0:06:56]} b5 {[%emt 0:01:49]} 14. f5 {[%emt 0:06:58]} gxf5 {[%emt 0:09:06]} 15. Qh5 {[%emt 0:03:25]} fxe4 {[%emt 0:04:12]} 16. Bxh6 {[%emt 0:04:31]} f5 {[%emt 0:04:48]} 17. Qg5 {[%emt 0:15:00]} Rf7 {[%emt 0:00:22]} 18. Nf6+ {[%emt 0:04:11]} Kf8 {[%emt 0:01:49]} 19. Ncxe4 {[%emt 0:10:24]} Nd4 {[%emt 0:08:39]} 20. Nh7+ {[%emt 0:04:57]} Kg8 {[%emt 0:01:56]} 21. Nef6+ {[%emt 0:01:01]} Kh8 {[%emt 0:01:20]} 22. Bxg7+ {[%emt 0:01:20]} Rxg7 {[%emt 0:00:15]} 23. Qh5 {[%emt 0:01:04]} Rg6 {[%emt 0:01:46]} 24. Nf8+ {[%emt 0:06:45]} Kg7 {[%emt 0:00:10]} 25. Nxg6 {[%emt 0:00:32]} Nxg6 {[%emt 0:00:07]} 26. Nd5 {[%emt 0:01:11]} bxc4 {[%emt 0:00:33]} 27. dxc4 {[%emt 0:03:13]} Rxb2 {[%emt 0:00:24]} 28. Rab1 {[%emt 0:02:52]} Rxa2 {[%emt 0:00:44]} 29. Bh3 {[%emt 0:02:30]} Qe8 {[%emt 0:00:56]} 30. Rbe1 {[%emt 0:03:06]} Ne2+ {[%emt 0:00:18]} 31. Kh1 {[%emt 0:00:42]} Qe4+ {[%emt 0:00:21]} 32. Qf3 {[%emt 0:00:34]} Qxc4 {[%emt 0:01:20]} 33. Bxf5 {[%emt 0:00:59]} Nd4 {[%emt 0:01:00]} 34. Qg4 {[%emt 0:01:05]} Qxd5+ {[%emt 0:01:04]} 35. Be4 {[%emt 0:00:35]} Bxg4 {[%emt 0:00:28]} 36. Bxd5 {[%emt 0:00:12]} Rd2 {[%emt 0:00:44]} 37. Rf7+ {[%emt 0:00:33]} Kh6 {[%emt 0:00:09]} 38. Ref1 {[%emt 0:00:38]} Ne2 {[%emt 0:02:37]} 39. R7f6 {[%emt 0:00:33]} Rxd5 {[%emt 0:03:14]} 0-1

[Event "African Individual Chess-ch Women 2024"]
[Site "Accra"]
[Date "2024.03.17"]
[Round "6.5"]
[White "Nakabo, Peninah"]
[Black "Benson, Maud"]
[Result "1-0"]
[ECO "B07"]
[WhiteElo "1836"]
[BlackElo "1664"]
[Annotator "NA RC"]
[PlyCount "101"]
[EventDate "2024.03.13"]
[EventCountry "GHA"]
[SourceTitle "playchess.com"]
[Source "ChessBase"]
[SourceQuality "1"]
[TimeControl "5400+30"]

1. e4 {[%emt 0:00:30]} d6 {[%emt 0:00:30]} 2. d4 {[%emt 0:00:30]} Nf6 {[%emt 0:00:30]} 3. Nc3 {[%emt 0:00:30]} c6 {[%emt 0:00:30]} 4. Nf3 {[%emt 0:00:30]} Qa5 {[%emt 0:00:30]} 5. Bd3 {[%emt 0:00:30]} e5 {[%emt 0:00:30]} 6. dxe5 {[%emt 0:00:30] B07: Pirc Defence: Miscellaneous Systems.} dxe5 {[%emt 0:00:30]} 7. O-O {[%emt 0:00:30]} Bg4 {[%emt 0:00:30]} 8. Bd2 {[%emt 0:00:30]} Qc7 {[%emt 0:00:30]} 9. h3 {[%emt 0:00:30]} Bh5 {[%emt 0:00:30]} 10. a3 {[%emt 0:05:00]} a5 {[%emt 0:05:00]} 11. Be3 {[%emt 0:01:29]} Nbd7 {[%emt 0:06:02]} 12. Qe2 {[%emt 0:00:37]} Be7 {[%emt 0:01:04]} 13. Kh1 {[%emt 0:01:02]} h6 {[%emt 0:03:30]} 14. Rab1 {[%emt 0:01:07]} a4 {[%emt 0:01:22]} 15. Rfd1 {[%emt 0:03:41]} O-O {[%emt 0:00:42]} 16. g4 {[%emt 0:00:16]} Nxg4 {[%emt 0:15:39]} 17. hxg4 {[%emt 0:00:12]} Bxg4 {[%emt 0:00:07]} 18. Rg1 {[%emt 0:00:27]} h5 {[%emt 0:00:20]} 19. Qd1 {[%emt 0:02:34]} Bc5 {[%emt 0:22:05]} 20. Rg3 {[%emt 0:01:04]} Bxe3 {[%emt 0:00:55]} 21. fxe3 {[%emt 0:00:05]} f5 {[%emt 0:03:52]} 22. Be2 {[%emt 0:06:34]} f4 {[%emt 0:03:04]} 23. exf4 {[%emt 0:00:46]} Rxf4 {[%emt 0:10:09]} 24. Nh2 {[%emt 0:03:00]} Bxe2 {[%emt 0:05:02]} 25. Qxe2 {[%emt 0:00:11]} h4 {[%emt 0:03:46]} 26. Rg4 {[%emt 0:00:28]} Nf6 {[%emt 0:01:12]} 27. Rxf4 {[%emt 0:00:31]} exf4 {[%emt 0:01:27]} 28. Qf3 {[%emt 0:05:55]} Ra5 {[%emt 0:03:25]} 29. Ng4 {[%emt 0:03:21]} Nh5 {[%emt 0:01:44]} 30. e5 {[%emt 0:00:41]} Ng3+ {[%emt 0:02:00]} 31. Kh2 {[%emt 0:00:23]} Qf7 {[%emt 0:07:49]} 32. Rd1 {[%emt 0:05:31]} Qf5 {[%emt 0:00:58]} 33. Rc1 {[%emt 0:10:09]} Ra8 {[%emt 0:01:06]} 34. Ne2 {[%emt 0:10:15]} Nxe2 {[%emt 0:02:43]} 35. Qxe2 {[%emt 0:00:09]} f3 {[%emt 0:00:26]} 36. Qc4+ {[%emt 0:00:31]} Kh8 {[%emt 0:01:30]} 37. Kh3 {[%emt 0:03:40]} Re8 {[%emt 0:00:58]} 38. Kxh4 {[%emt 0:06:23]} g5+ {[%emt 0:01:01]} 39. Kg3 {[%emt 0:00:41]} b5 {[%emt 0:00:24]} 40. Rh1+ {[%emt 0:01:12]} Kg7 {[%emt 0:00:13]} 41. Qd4 {[%emt 0:01:02]} c5 {[%emt 0:00:30]} 42. Qd6 {[%emt 0:04:56]} (42. Qxc5 $2 {perishes.} Qf4+ 43. Kf2 Qd2+ 44. Kxf3 Qf4+ 45. Kg2 Qxg4+ 46. Kf2 Qf4+ (46... Rf8+ $2 47. Ke1 $19) 47. Kg2 Rf8 $19 (47... Rxe5 $2 48. Qc7+ Kg8 49. Qh7+ Kf8 50. Qh8+ Kf7 51. Rh7+ Kg6 52. Rg7+ Kf5 53. Rf7+ Ke4 54. Qa8+ Rd5 55. Rxf4+ $18) (47... Qxe5 48. Qxe5+ Rxe5 49. Kf3 $11)) 42... Qf4+ {[%emt 0:00:00]} 43. Kf2 {[%emt 0:00:00]} Qd4+ {[%emt 0:00:00]} 44. Qxd4 {[%emt 0:00:00]} cxd4 {[%emt 0:00:00]} 45. Rd1 {[%emt 0:00:00]} Rc8 {[%emt 0:00:00]} 46. Rd2 {[%emt 0:00:00]} Kg6 {[%emt 0:00:00]} 47. Kxf3 {[%emt 0:00:00]} Kf5 {[%emt 0:00:00]} 48. Kg3 {[%emt 0:00:00]} Ke4 {[%emt 0:00:00]} 49. e6 {[%emt 0:31:07]} Rh8 {[%emt 0:00:00]} 50. e7 {[%emt 0:00:00]} Kf5 {[%emt 0:00:00]} 51. Rf2+ {[%emt 0:00:00]} 1-0

[Event "African Individual Chess-ch Women 2024"]
[Site "Accra"]
[Date "2024.03.17"]
[Round "6.6"]
[White "Marochkina, Nadezhda Valerevna"]
[Black "Shaba, Linda Dalitso"]
[Result "1/2-1/2"]
[ECO "A85"]
[WhiteElo "1819"]
[BlackElo "1836"]
[Annotator "NA RC"]
[PlyCount "83"]
[EventDate "2024.03.13"]
[EventCountry "GHA"]
[SourceTitle "playchess.com"]
[Source "ChessBase"]
[SourceQuality "1"]
[TimeControl "5400+30"]

1. d4 {[%emt 0:01:06]} e6 {[%emt 0:00:06]} 2. c4 {[%emt 0:00:20]} f5 {[%emt 0:00:09]} 3. Nc3 {[%emt 0:00:24]} Nf6 {[%emt 0:00:06]} 4. h3 {[%emt 0:00:55]} Be7 {[%emt 0:00:11]} 5. Qc2 {[%emt 0:04:34]} Nc6 {[%emt 0:05:09]} 6. Nf3 {[%emt 0:00:31]} Nb4 {[%emt 0:02:58]} 7. Qb1 {[%emt 0:00:34]} d5 {[%emt 0:02:46]} 8. a3 {[%emt 0:06:10]} Nc6 {[%emt 0:00:23]} 9. Bf4 {[%emt 0:09:38]} dxc4 {[%emt 0:12:00]} 10. e3 {[%emt 0:00:29]} Nd5 {[%emt 0:03:59]} 11. Bh2 {[%emt 0:02:05]} Na5 {[%emt 0:06:51]} 12. Nd2 {[%emt 0:06:51]} Bd6 {[%emt 0:10:44]} 13. Bxd6 {[%emt 0:00:48]} cxd6 {[%emt 0:03:35]} 14. Nxc4 {[%emt 0:00:39]} Nxc4 {[%emt 0:01:23]} 15. Bxc4 {[%emt 0:00:19]} Nxc3 {[%emt 0:01:32]} 16. bxc3 {[%emt 0:00:12]} Qc7 {[%emt 0:01:01]} 17. Qb3 {[%emt 0:00:33]} d5 {[%emt 0:02:38]} 18. Bb5+ {[%emt 0:00:52]} Bd7 {[%emt 0:00:25]} 19. O-O {[%emt 0:00:29]} Rc8 {[%emt 0:01:12]} 20. Rfc1 {[%emt 0:01:57]} Bxb5 {[%emt 0:01:51]} 21. Qxb5+ {[%emt 0:00:15]} Qc6 {[%emt 0:00:30]} 22. Qa5 {[%emt 0:00:44]} a6 {[%emt 0:11:51]} 23. Rab1 {[%emt 0:00:59]} b5 {[%emt 0:00:26]} 24. a4 {[%emt 0:00:48]} Rb8 {[%emt 0:09:32]} 25. axb5 {[%emt 0:03:16]} axb5 {[%emt 0:00:14]} 26. Qa7 {[%emt 0:00:23]} O-O {[%emt 0:00:32]} 27. Rb3 {[%emt 0:02:38]} Rb7 {[%emt 0:02:40]} 28. Qa5 {[%emt 0:01:05]} Rfb8 {[%emt 0:00:32]} 29. Ra1 {[%emt 0:02:04]} Kf7 {[%emt 0:00:59]} 30. Qb4 {[%emt 0:00:29]} Qc4 {[%emt 0:05:43]} 31. Ra5 {[%emt 0:00:56]} Qe2 {[%emt 0:02:15]} 32. Rb1 {[%emt 0:01:20]} Qc4 {[%emt 0:01:15]} 33. Qa3 {[%emt 0:02:22]} Qd3 {[%emt 0:01:38]} 34. Ra1 {[%emt 0:02:46]} Qc4 {[%emt 0:02:12]} 35. Ra6 {[%emt 0:02:02]} Qc7 {[%emt 0:01:02]} 36. Qb4 {[%emt 0:01:48]} Rc8 {[%emt 0:01:14]} 37. R1a3 {[%emt 0:00:40]} Rcb8 {[%emt 0:00:46]} 38. R6a5 {[%emt 0:02:16]} Qc6 {[%emt 0:01:02]} 39. Ra6 {[%emt 0:00:52]} Qc7 {[%emt 0:02:18]} 40. R6a5 {[%emt 0:03:51]} Qc6 {[%emt 0:01:08]} 41. Ra6 {[%emt 0:00:07]} Qc7 {[%emt 0:00:13]} 42. R6a5 {[%emt 0:00:05]} 1/2-1/2